bitfinex/quotes_BTCUSD_20230120
["timestamp","ask_amount","ask_price","bid_price","bid_amount"]
[1674247977467,0.1138,22241.0,22233.0,0.45447315]
[1674247977733,0.1138,22241.0,22230.0,0.86093]
[1674247977734,0.51333843,22240.0,22232.0,0.114]
[1674247978036,1.38489543,22239.0,22238.0,1.99]
[1674247978298,1.320459,22239.0,22238.0,1.99]
[1674247978554,1.320459,22239.0,22225.0,0.15]
[1674247978555,3.25212956,22239.0,22225.0,0.15]
[1674247978810,0.45447315,22236.0,22229.0,0.15]
[1674247979072,0.1144,22230.0,22225.0,0.15]
[1674247979339,0.3418,22226.0,22220.0,2.14522164]
[1674247979582,0.7972,22221.0,22220.0,1.99644164]
[1674247979837,2.21453643,22221.0,22215.0,1.9916]
[1674247980092,0.1136,22216.0,22215.0,1.9916]
[1674247980348,3.11204858,22216.0,22215.0,1.9916]
[1674247980603,3.22504858,22216.0,22215.0,1.55264019]
[1674247980857,4.68854015,22216.0,22203.0,4.0]
[1674247981135,4.68854015,22216.0,22201.0,0.02186]
[1674247981136,0.2265,22204.0,22201.0,0.02186]
[1674247981392,2.32961958,22203.0,22201.0,0.01986]
[1674247981652,2.32961958,22203.0,22201.0,0.01967]
[1674247981653,1.03120543,22202.0,22201.0,0.01967]
[1674247982003,2.19691607,22202.0,22200.0,0.22306038]
[1674247982172,0.24817498,22201.0,22196.0,0.2]
[1674247982431,1.46442,22197.0,22184.0,0.76192]
[1674247982693,1.351763,22194.0,22185.0,3.0]
[1674247982961,0.1132,22188.0,22185.0,1.0]
[1674247983227,0.0224,22191.0,22187.0,0.6]
[1674247983467,0.114,22189.0,22185.0,0.6]
[1674247983732,0.303062,22188.0,22185.0,0.6]
[1674247983990,0.18276331,22188.0,22185.0,0.6]
[1674247984527,0.18502243,22187.0,22185.0,0.6]
[1674247984784,0.18521243,22189.0,22185.0,0.6]
[1674247985056,0.00019,22189.0,22188.0,0.6]
[1674247985312,0.01942922,22191.0,22188.0,0.6]
[1674247985563,0.1133,22190.0,22188.0,0.6]
[1674247985818,0.318251,22189.0,22185.0,0.6]
[1674247986095,0.50020343,22188.0,22185.0,0.6]
[1674247986349,0.1139,22186.0,22185.0,0.6]
[1674247986598,0.432777,22186.0,22185.0,0.6]
[1674247986862,0.43051788,22186.0,22185.0,0.6]
[1674247987147,0.13292922,22191.0,22185.0,0.6]
[1674247987618,0.092,22188.0,22185.0,0.6]
[1674247987891,0.46795165,22191.0,22187.0,0.6]
[1674247988158,0.25917041,22191.0,22190.0,0.6]
[1674247988466,0.25917041,22191.0,22190.0,0.724866]
[1674247988467,0.092,22191.0,22190.0,0.724866]
[1674247988685,0.092,22191.0,22190.0,1.175519]
[1674247989174,0.08974119,22191.0,22190.0,1.289519]
[1674247989428,0.08974119,22191.0,22190.0,1.74399215]
[1674247989696,0.15,22192.0,22191.0,0.109]
[1674247989945,0.15,22192.0,22191.0,1.25796015]
[1674247990203,0.15,22194.0,22191.0,1.78327015]
[1674247990473,0.15,22194.0,22193.0,0.714]
[1674247990741,0.16967,22201.0,22193.0,3.20849715]
[1674247990997,0.15,22199.0,22198.0,0.114]
[1674247991270,0.15,22199.0,22198.0,1.289278]
[1674247991506,0.15,22199.0,22198.0,2.08024215]
[1674247991774,0.16967,22201.0,22198.0,4.19424215]
[1674247992024,0.16967,22201.0,22199.0,0.56847315]
[1674247992327,0.15,22202.0,22200.0,1.89415515]
[1674247992553,2.0636,22215.0,22200.0,1.89415515]
[1674247992554,0.15,22205.0,22201.0,1.33068656]
[1674247992811,0.15,22207.0,22204.0,0.82518]
[1674247993078,1.95,22215.0,22207.0,0.13561]
[1674247993333,1.95,22215.0,22214.0,0.6]
[1674247993598,1.95,22215.0,22214.0,1.614332]
[1674247993892,1.95,22215.0,22214.0,2.07946915]
[1674247994144,1.95,22215.0,22214.0,2.19336915]
[1674247994403,0.13397244,22225.0,22214.0,5.09336915]
[1674247994404,0.02067244,22225.0,22214.0,5.09336915]
[1674247994665,0.02067244,22225.0,22224.0,0.6]
[1674247994966,0.02067244,22225.0,22224.0,1.62452]
[1674247995186,0.02067244,22225.0,22224.0,2.07899315]
[1674247995970,0.02067244,22225.0,22224.0,2.30699315]
[1674247996304,0.02067244,22225.0,22224.0,2.83196315]
[1674247996551,0.02067244,22225.0,22224.0,4.07899315]
[1674247996802,0.02067244,22225.0,22224.0,3.37899315]
[1674247997060,0.5,22232.0,22224.0,4.17659315]
[1674247997337,0.5,22232.0,22231.0,0.6]
[1674247997661,0.5,22232.0,22231.0,1.288353]
[1674247998118,0.5,22232.0,22231.0,1.174353]
[1674247998374,0.5,22232.0,22226.0,0.6]
[1674247998636,0.18502243,22231.0,22226.0,0.6]
[1674247998917,0.50413943,22230.0,22224.0,0.084]
[1674247999169,0.1139,22227.0,22223.0,0.15]
[1674247999416,0.49896543,22226.0,22223.0,0.15]
[1674247999696,0.49293343,22225.0,22223.0,0.15]
[1674247999961,0.75941143,22224.0,22223.0,0.15]
[1674248000248,0.517919,22224.0,22223.0,0.15]
[1674248000508,0.289719,22224.0,22223.0,0.15]
[1674248001292,0.26170633,22224.0,22223.0,0.15]
[1674248001598,0.26170633,22224.0,22215.0,3.00013]
[1674248001824,0.1139,22220.0,22215.0,1.95]
[1674248002088,0.49830843,22219.0,22215.0,1.95]
[1674248002348,0.113,22217.0,22215.0,0.6115]
[1674248002603,0.50389243,22216.0,22215.0,0.6115]
[1674248002890,0.43237,22216.0,22215.0,0.6115]
[1674248003110,0.43011403,22216.0,22211.0,0.6]
[1674248003363,0.95524943,22215.0,22208.0,0.6]
[1674248003619,0.114,22213.0,22208.0,0.6]
[1674248003885,0.317818,22212.0,22208.0,0.6]
[1674248004146,0.18502243,22212.0,22211.0,0.601]
[1674248004431,0.084,22216.0,22211.0,0.601]
[1674248004432,0.1887,22217.0,22213.0,0.15]
[1674248004911,0.32825,22216.0,22213.0,0.14]
[1674248005183,0.114,22214.0,22213.0,0.14]
[1674248005490,0.535415,22214.0,22213.0,0.14]
[1674248005709,0.9339724,22214.0,22213.0,0.14]
[1674248005962,1.735747,22214.0,22213.0,0.14]
[1674248006467,1.720747,22214.0,22213.0,0.14]
[1674248006712,2.290747,22214.0,22206.0,0.15]
[1674248006970,0.750166,22214.0,22213.0,0.001]
[1674248007242,1.285099,22214.0,22206.0,0.15]
[1674248007496,0.114,22209.0,22206.0,0.28361]
[1674248007779,0.303388,22208.0,22204.0,1.050355]
[1674248008120,0.114,22209.0,22206.0,0.001]
[1674248008298,0.114,22207.0,22206.0,0.001]
[1674248008552,0.29902243,22207.0,22206.0,0.000928]
[1674248008797,0.550955,22207.0,22206.0,0.000928]
[1674248009052,1.420855,22207.0,22205.0,0.15]
[1674248009302,1.111607,22206.0,22205.0,0.15]
[1674248009555,1.111607,22206.0,22202.0,0.15341979]
[1674248009556,0.541807,22206.0,22202.0,0.15341979]
[1674248009821,0.717202,22208.0,22203.0,0.6]
[1674248009822,0.320404,22205.0,22203.0,0.6]
[1674248010072,0.2669,22208.0,22203.0,1.050389]
[1674248010323,0.23674281,22207.0,22204.0,0.230995]
[1674248010572,0.089,22207.0,22206.0,0.6]
[1674248011077,0.2669,22208.0,22206.0,0.830967]
[1674248011346,0.2669,22208.0,22207.0,1.35508915]
[1674248011606,0.1135,22218.0,22207.0,2.88604415]
[1674248011856,0.449996,22223.0,22217.0,0.6]
[1674248012107,0.1134,22227.0,22220.0,0.6]
[1674248012380,0.1139,22225.0,22220.0,0.6]
[1674248012902,0.114,22221.0,22216.0,1.050125]
[1674248013256,0.1137,22218.0,22213.0,0.450179]
[1674248013442,0.449931,22226.0,22219.0,0.5997336]
[1674248013707,1.00152849,22232.0,22221.0,0.900044]
[1674248013708,0.15,22223.0,22221.0,0.900044]
[1674248013954,0.15,22223.0,22222.0,0.7130336]
[1674248014216,0.6133,22232.0,22222.0,1.3937976]
[1674248014473,0.6133,22232.0,22230.0,0.5997336]
[1674248014743,0.6133,22232.0,22231.0,0.230651]
[1674248014991,0.6133,22232.0,22230.0,0.5997336]
[1674248014992,0.5,22232.0,22230.0,0.5997336]
[1674248015257,0.614,22232.0,22230.0,0.5997336]
[1674248015516,0.1136,22231.0,22227.0,0.5997336]
[1674248015798,0.314482,22230.0,22227.0,0.5997336]
[1674248016072,0.5,22232.0,22227.0,0.5997336]
[1674248016313,0.5,22232.0,22231.0,0.5997336]
[1674248016314,0.576,22232.0,22231.0,0.5997336]
[1674248016571,0.5,22232.0,22231.0,0.5997336]
[1674248016818,0.5,22232.0,22231.0,1.2801966]
[1674248017073,0.5,22232.0,22231.0,0.8303746]
[1674248017352,0.507,22232.0,22231.0,0.252641]
[1674248017598,0.507,22232.0,22231.0,0.172]
[1674248017599,0.18502243,22232.0,22231.0,0.172]
[1674248017869,0.67959298,22232.0,22231.0,0.172]
[1674248018114,0.444718,22232.0,22228.0,0.5997336]
[1674248018407,0.01892156,22233.0,22228.0,0.5997336]
[1674248018622,0.169,22232.0,22231.0,0.5997336]
[1674248018884,0.01892156,22233.0,22231.0,1.50402875]
[1674248019130,0.063,22232.0,22231.0,1.0525556]
[1674248019390,0.063,22232.0,22231.0,1.2831956]
[1674248019661,0.01892156,22233.0,22231.0,0.8303736]
[1674248019940,0.20394399,22233.0,22230.0,0.5997336]
[1674248020196,0.20394399,22233.0,22231.0,0.003]
[1674248020197,0.114,22232.0,22231.0,0.003]
[1674248020468,0.23615832,22232.0,22231.0,0.003]
[1674248020716,0.114,22232.0,22231.0,0.003]
[1674248021043,0.26174535,22232.0,22222.0,0.600003]
[1674248021228,0.18502243,22231.0,22228.0,0.5927336]
[1674248021490,0.113,22229.0,22224.0,0.5927336]
[1674248021734,1.53928158,22228.0,22221.0,0.5927336]
[1674248022046,1.65829558,22227.0,22218.0,0.15]
[1674248022300,1.435764,22225.0,22218.0,0.5927336]
[1674248022554,1.435764,22225.0,22218.0,0.3427336]
[1674248022555,0.1136,22221.0,22218.0,0.3427336]
[1674248022794,0.38492243,22225.0,22220.0,0.3427336]
[1674248023054,0.114,22225.0,22224.0,0.3427336]
[1674248023628,0.114,22225.0,22220.0,0.56479989]
[1674248023828,0.069,22221.0,22220.0,0.15]
[1674248024095,0.069,22221.0,22220.0,0.9427716]
[1674248024343,0.069,22221.0,22220.0,0.3427336]
[1674248024588,0.069,22221.0,22218.0,0.002]
[1674248025114,0.114,22219.0,22217.0,0.3427336]
[1674248025360,0.1136,22218.0,22217.0,0.3427336]
[1674248025616,0.18502243,22218.0,22215.0,0.3427336]
[1674248025890,0.18502243,22217.0,22215.0,0.3427336]
[1674248026153,0.114,22216.0,22215.0,0.3427336]
[1674248026657,0.45008,22219.0,22215.0,0.3427336]
[1674248026912,0.062,22218.0,22216.0,0.11477289]
[1674248027176,0.062,22218.0,22217.0,0.3427336]
[1674248027719,0.062,22218.0,22214.0,0.3427336]
[1674248027945,0.062,22216.0,22215.0,0.003]
[1674248028200,0.39964243,22218.0,22214.0,0.3427336]
[1674248028201,0.15,22217.0,22214.0,0.3427336]
[1674248028451,0.175,22218.0,22217.0,0.003]
[1674248028703,0.175,22218.0,22214.0,0.3427336]
[1674248028704,0.093,22218.0,22214.0,0.3427336]
[1674248028960,0.062,22216.0,22215.0,0.003]
[1674248029224,0.600124,22217.0,22214.0,0.3427336]
[1674248029464,0.114,22215.0,22214.0,0.3427336]
[1674248029727,0.114,22215.0,22212.0,0.15]
[1674248029977,0.29902243,22215.0,22212.0,0.15]
[1674248030240,0.29902243,22215.0,22214.0,0.3427336]
[1674248030241,0.114,22215.0,22214.0,0.3427336]
[1674248030740,0.064,22215.0,22214.0,0.45750649]
[1674248030986,0.450055,22220.0,22214.0,0.3427336]
[1674248031245,0.450055,22220.0,22215.0,0.11477289]
[1674248031246,0.114,22217.0,22215.0,0.11477289]
[1674248031502,1.014231,22217.0,22214.0,0.3427336]
[1674248031768,0.1138,22220.0,22214.0,0.45750649]
[1674248032017,0.1138,22220.0,22219.0,0.3427336]
[1674248032018,0.057,22220.0,22219.0,0.3427336]
[1674248032269,0.1136,22222.0,22219.0,0.45750649]
[1674248032519,0.1136,22222.0,22220.0,0.11477289]
[1674248033039,0.1135,22224.0,22221.0,0.45750649]
[1674248033287,0.1139,22227.0,22222.0,0.11477289]
[1674248033541,0.1139,22227.0,22226.0,0.3427336]
[1674248033792,0.1133,22229.0,22226.0,0.45750649]
[1674248034058,0.114,22231.0,22226.0,0.45750649]
[1674248034323,0.56383,22231.0,22227.0,0.11477289]
[1674248034569,0.56383,22231.0,22229.0,0.3427336]
[1674248035068,0.114,22230.0,22225.0,0.14484]
[1674248035340,0.12071915,22228.0,22226.0,0.3427336]
[1674248035611,0.114,22227.0,22223.0,0.12910004]
[1674248035870,0.18502243,22226.0,22223.0,0.07123004]
[1674248036126,0.18502243,22225.0,22223.0,0.07123004]
[1674248036405,0.1139,22224.0,22223.0,0.07123004]
[1674248036660,0.449964,22224.0,22221.0,0.07123004]
[1674248036905,0.1138,22222.0,22221.0,0.07123004]
[1674248037150,0.1138,22222.0,22221.0,0.06123004]
[1674248038146,0.0988,22222.0,22221.0,0.06123004]
[1674248038646,0.0938,22222.0,22221.0,0.06123004]
[1674248038924,0.1528,22222.0,22221.0,0.06423004]
[1674248039434,0.1132,22224.0,22221.0,0.62902693]
[1674248039712,0.01992363,22227.0,22222.0,0.26477289]
[1674248039956,0.01992363,22227.0,22226.0,0.06123004]
[1674248040455,0.10248363,22227.0,22226.0,0.06123004]
[1674248040707,0.10248363,22227.0,22222.0,0.11477289]
[1674248040708,0.30157034,22227.0,22222.0,0.11477289]
[1674248040957,1.08488843,22226.0,22221.0,0.003]
[1674248041206,0.18502243,22225.0,22221.0,0.003]
[1674248041455,0.449968,22224.0,22221.0,0.003]
[1674248041716,0.18502243,22224.0,22220.0,0.06123004]
[1674248041977,0.44997,22224.0,22220.0,0.06123004]
[1674248042228,0.311316,22223.0,22220.0,0.06123004]
[1674248042479,0.76247,22222.0,22220.0,0.06123004]
[1674248042736,0.308207,22221.0,22215.0,0.60014]
[1674248042995,0.15,22223.0,22219.0,0.06123004]
[1674248042996,0.18502243,22220.0,22219.0,0.06123004]
[1674248043256,0.18502243,22220.0,22216.0,0.06123004]
[1674248043512,0.296234,22219.0,22216.0,0.06123004]
[1674248043760,1.363331,22218.0,22216.0,0.06123004]
[1674248044020,0.324455,22217.0,22216.0,0.06123004]
[1674248044273,9.0,22220.0,22216.0,0.06123004]
[1674248044539,9.0,22220.0,22217.0,0.56924604]
[1674248044540,0.025,22219.0,22217.0,0.56924604]
[1674248044795,9.0,22220.0,22217.0,0.56924604]
[1674248044796,9.0,22220.0,22218.0,1.11140004]
[1674248045047,9.0,22220.0,22218.0,1.56148504]
[1674248045296,8.53295,22220.0,22218.0,1.51148504]
[1674248045563,0.09374,22221.0,22219.0,0.67949315]
[1674248045810,0.01992363,22227.0,22220.0,1.783194]
[1674248046092,0.01992363,22227.0,22226.0,0.06123004]
[1674248046339,0.01992363,22227.0,22226.0,0.34419504]
[1674248046862,0.01992363,22227.0,22226.0,0.06123004]
[1674248047100,0.10248363,22227.0,22224.0,0.06123004]
[1674248047353,0.319189,22226.0,22221.0,0.06123004]
[1674248047599,0.65793943,22225.0,22223.0,0.06123004]
[1674248047847,0.3094,22224.0,22223.0,0.06123004]
[1674248048097,0.15,22225.0,22223.0,0.06123004]
[1674248048364,0.15,22226.0,22224.0,0.006]
[1674248048633,0.135,22226.0,22223.0,0.06123004]
[1674248048891,0.135,22226.0,22223.0,0.06723004]
[1674248048892,0.025,22225.0,22223.0,0.06723004]
[1674248049179,0.762407,22224.0,22223.0,0.06123004]
[1674248049681,0.312443,22224.0,22223.0,0.06123004]
[1674248050450,0.584939,22226.0,22223.0,0.06723004]
[1674248050451,0.025,22225.0,22223.0,0.06723004]
[1674248050676,0.025,22225.0,22223.0,0.18200293]
[1674248050944,0.01992363,22227.0,22224.0,0.11477289]
[1674248051195,0.01992363,22227.0,22226.0,0.06123004]
[1674248051443,0.01992363,22227.0,22226.0,0.79411104]
[1674248051755,0.01992363,22227.0,22226.0,0.90888393]
[1674248051976,0.01992363,22227.0,22226.0,0.79411104]
[1674248052254,2.363e-05,22227.0,22226.0,1.92345719]
[1674248052513,0.12071915,22228.0,22227.0,0.09548637]
[1674248053049,0.12071915,22228.0,22227.0,0.37842937]
[1674248053556,0.12071915,22228.0,22227.0,0.30283937]
[1674248053805,0.12071915,22228.0,22227.0,0.75274237]
[1674248054372,0.12071915,22228.0,22227.0,1.77189141]
[1674248054607,0.12071915,22228.0,22227.0,1.20264537]
[1674248054855,0.12071915,22228.0,22227.0,1.65711852]
[1674248055115,0.12271915,22228.0,22227.0,1.27064537]
[1674248055343,0.12071915,22228.0,22227.0,1.20264537]
[1674248055599,0.12271915,22228.0,22227.0,1.26964537]
[1674248055856,0.12071915,22228.0,22227.0,1.20264537]
[1674248056095,0.12271915,22228.0,22227.0,1.17285544]
[1674248056633,0.12271915,22228.0,22227.0,0.11804944]
[1674248057137,0.44397615,22228.0,22227.0,0.068]
[1674248057402,0.77899858,22228.0,22227.0,0.068]
[1674248057643,0.59397615,22228.0,22227.0,0.068]
[1674248057894,0.59197615,22228.0,22223.0,0.06123004]
[1674248058141,0.460487,22227.0,22223.0,0.06123004]
[1674248058425,0.460487,22227.0,22222.0,0.06123004]
[1674248058426,0.15,22225.0,22222.0,0.06123004]
[1674248058649,0.51010843,22224.0,22222.0,0.06123004]
[1674248058918,0.75861,22223.0,22219.0,0.06123004]
[1674248059169,0.51094943,22222.0,22219.0,0.06123004]
[1674248059506,0.15,22220.0,22216.0,0.05623004]
[1674248059651,0.45001,22222.0,22220.0,0.05623004]
[1674248059911,0.449984,22223.0,22217.0,0.05623004]
[1674248059912,0.31681,22221.0,22217.0,0.05623004]
[1674248060162,0.32486,22220.0,22217.0,0.05623004]
[1674248060413,0.18502243,22221.0,22219.0,0.05623004]
[1674248060687,0.15,22222.0,22219.0,0.05623004]
[1674248060927,0.329699,22221.0,22216.0,0.05623004]
[1674248061169,1.11094143,22220.0,22216.0,0.05623004]
[1674248061413,0.323951,22219.0,22216.0,0.05623004]
[1674248061676,0.086,22221.0,22218.0,0.05623004]
[1674248061927,0.15,22222.0,22218.0,0.17100293]
[1674248062225,0.15,22227.0,22221.0,0.05623004]
[1674248062475,0.15,22227.0,22226.0,0.05623004]
[1674248062728,0.15,22227.0,22226.0,0.17100293]
[1674248062974,0.15,22227.0,22226.0,0.05623004]
[1674248063228,0.478495,22227.0,22223.0,0.05623004]
[1674248063500,0.309348,22226.0,22223.0,0.05623004]
[1674248063750,0.304754,22225.0,22223.0,0.17100293]
[1674248064025,0.079,22227.0,22226.0,0.001]
[1674248064272,0.079,22227.0,22226.0,0.18288104]
[1674248064550,0.12071915,22228.0,22226.0,0.23528792]
[1674248064805,0.12071915,22228.0,22227.0,0.94986]
[1674248066411,0.12871915,22228.0,22227.0,1.09986]
[1674248066653,0.12071915,22228.0,22227.0,1.20332788]
[1674248066897,0.02041235,22230.0,22228.0,0.30478756]
[1674248067190,0.02041235,22230.0,22229.0,0.51070319]
[1674248067439,0.02041235,22230.0,22229.0,1.16060819]
[1674248067938,0.02741235,22230.0,22229.0,1.16060819]
[1674248068194,0.02741235,22230.0,22229.0,0.55613504]
[1674248068195,0.10297235,22230.0,22229.0,0.55613504]
[1674248068446,0.29499478,22230.0,22229.0,0.11927304]
[1674248068710,0.29499478,22230.0,22229.0,0.013]
[1674248068936,0.42755435,22230.0,22229.0,0.013]
[1674248069184,0.42055435,22230.0,22228.0,0.20825734]
[1674248069438,0.331668,22229.0,22228.0,0.20825734]
[1674248069931,0.331668,22229.0,22227.0,6e-05]
[1674248070178,0.916005,22228.0,22227.0,6e-05]
[1674248070446,0.466122,22228.0,22227.0,6e-05]
[1674248070955,0.466122,22228.0,22227.0,0.00106]
[1674248071208,0.916005,22228.0,22227.0,6e-05]
[1674248071472,1.11461983,22228.0,22227.0,6e-05]
[1674248071720,0.916005,22228.0,22227.0,6e-05]
[1674248071971,0.916005,22228.0,22222.0,0.05623004]
[1674248072281,0.677883,22228.0,22227.0,0.001]
[1674248072498,0.915774,22228.0,22222.0,0.05623004]
[1674248072746,0.678883,22228.0,22222.0,0.05623004]
[1674248072997,0.318293,22227.0,22222.0,0.05623004]
[1674248073251,0.599883,22228.0,22227.0,0.05623004]
[1674248073252,0.026,22228.0,22227.0,0.05623004]
[1674248073515,0.026,22228.0,22227.0,0.10628704]
[1674248073799,0.026,22228.0,22227.0,0.05623004]
[1674248074009,0.02041235,22230.0,22227.0,0.04623004]
[1674248074254,0.02041235,22230.0,22227.0,0.14969792]
[1674248074502,0.02041235,22230.0,22227.0,0.04623004]
[1674248074503,0.327585,22229.0,22227.0,0.04623004]
[1674248075002,0.15,22228.0,22227.0,0.04623004]
[1674248075257,0.307459,22228.0,22227.0,0.14969792]
[1674248075501,0.02041235,22230.0,22227.0,0.04623004]
[1674248075752,0.02041235,22230.0,22227.0,0.04723004]
[1674248075753,0.079,22228.0,22227.0,0.04723004]
[1674248075995,0.079,22228.0,22227.0,0.04729004]
[1674248076246,0.079,22228.0,22227.0,0.24734204]
[1674248076500,0.02041235,22230.0,22227.0,0.69623604]
[1674248076745,0.02041235,22230.0,22227.0,0.64618404]
[1674248077013,0.09841235,22230.0,22228.0,0.050047]
[1674248077285,0.28343478,22230.0,22229.0,0.14]
[1674248077509,0.09841235,22230.0,22227.0,0.00106]
[1674248077777,0.1336,22228.0,22227.0,0.00106]
[1674248078021,0.441607,22228.0,22227.0,0.00106]
[1674248078271,0.09841235,22230.0,22227.0,0.04729004]
[1674248078528,0.02041235,22230.0,22228.0,0.55335088]
[1674248078782,0.02041235,22230.0,22229.0,0.15351388]
[1674248079018,0.02041235,22230.0,22229.0,0.499908]
[1674248079262,0.02041235,22230.0,22229.0,1.65771103]
[1674248079507,0.02041235,22230.0,22229.0,1.58021804]
[1674248079835,0.02041235,22230.0,22229.0,1.55424315]
[1674248080550,0.02041146,22236.0,22230.0,0.02040965]
[1674248080796,0.02041146,22236.0,22233.0,0.04623004]
[1674248081039,0.02041146,22236.0,22233.0,1.51917507]
[1674248081324,0.01974164,22237.0,22233.0,1.51917507]
[1674248081543,9.98e-06,22239.0,22236.0,0.58737315]
[1674248081794,9.98e-06,22239.0,22237.0,2.07247203]
[1674248082041,9.98e-06,22239.0,22238.0,0.55794103]
[1674248082282,9.98e-06,22239.0,22238.0,0.46989615]
[1674248082539,9.98e-06,22239.0,22238.0,6.79820403]
[1674248082781,9.98e-06,22239.0,22238.0,7.02071104]
[1674248083034,0.0001,22250.0,22239.0,0.15011002]
[1674248083283,0.0001,22250.0,22249.0,0.04623004]
[1674248083535,0.0001,22250.0,22249.0,1.50308707]
[1674248083789,0.01,22259.0,22257.0,0.316411]
[1674248084035,0.1336,22258.0,22257.0,0.316411]
[1674248084283,1.04706,22258.0,22257.0,0.41987888]
[1674248084539,0.10346,22257.0,22246.0,0.47500884]
[1674248084805,0.319535,22256.0,22250.0,0.04623004]
[1674248085045,0.10346,22257.0,22250.0,0.04623004]
[1674248085310,0.28848243,22257.0,22251.0,0.10346788]
[1674248085558,0.10346,22257.0,22252.0,0.10346788]
[1674248085821,0.16,22259.0,22253.0,0.10346788]
[1674248086064,0.16,22259.0,22254.0,0.10346788]
[1674248086309,0.01,22259.0,22255.0,0.10346788]
[1674248086581,0.01,22259.0,22258.0,0.04623004]
[1674248086843,0.01,22259.0,22258.0,0.91911515]
[1674248087100,0.6,22273.0,22258.0,1.50129115]
[1674248087382,0.15,22271.0,22264.0,0.45447315]
[1674248087627,0.02599472,22272.0,22269.0,0.45447315]
[1674248087866,0.15595085,22269.0,22267.0,0.449076]
[1674248088113,0.15595085,22269.0,22262.0,0.449185]
[1674248088382,0.15595085,22269.0,22261.0,0.14012]
[1674248088383,0.15595085,22269.0,22267.0,1.35266115]
[1674248088672,0.68152982,22277.0,22272.0,0.45447315]
[1674248088941,0.00102283,22278.0,22276.0,0.1332]
[1674248089161,0.00102283,22279.0,22274.0,0.448937]
[1674248089427,0.00102283,22279.0,22275.0,0.46976815]
[1674248089721,1.01349466,22283.0,22278.0,0.81158315]
[1674248090065,1.01349466,22283.0,22282.0,0.39995961]
[1674248090300,3.7199767,22294.0,22282.0,0.39995961]
[1674248090301,2.065544,22300.0,22282.0,2.10362561]
[1674248090549,4.65766268,22292.0,22290.0,0.1325]
[1674248090820,4.51034782,22292.0,22291.0,1.80027615]
[1674248091073,0.13922472,22295.0,22291.0,1.35168515]
[1674248091368,4.7968874,22295.0,22292.0,0.46971815]
[1674248091644,0.05710784,22300.0,22294.0,0.4822149]
[1674248091914,0.16,22311.0,22302.0,0.34908673]
[1674248091915,0.28181358,22309.0,22302.0,0.34908673]
[1674248092184,0.01,22319.0,22302.0,0.34908673]
[1674248092185,0.01,22319.0,22308.0,1.17296053]
[1674248092450,0.19908664,22326.0,22308.0,1.17296053]
[1674248092451,0.01,22329.0,22318.0,0.2663]
[1674248092761,0.11338,22348.0,22318.0,0.2663]
[1674248092762,0.01194952,22353.0,22350.0,0.2]
[1674248093010,0.0005663,22358.0,22352.0,0.4906]
[1674248093266,0.002681,22367.0,22352.0,0.4906]
[1674248093267,0.446805,22382.0,22356.0,0.22356]
[1674248093516,0.01,22384.0,22363.0,0.22357]
[1674248093793,0.45447315,22374.0,22363.0,1.2511]
[1674248094070,0.0011,22388.0,22363.0,1.2511]
[1674248094071,6.50445565,22398.0,22374.0,0.1334]
[1674248094330,6.50445565,22398.0,22373.0,0.9207]
[1674248094331,0.446707,22386.0,22373.0,0.9207]
[1674248094588,0.335868,22385.0,22384.0,1.3139]
[1674248094853,1.34790615,22386.0,22371.0,0.22256]
[1674248094854,0.446707,22386.0,22371.0,0.22256]
[1674248095161,0.446707,22386.0,22343.0,0.59013375]
[1674248095162,0.04817498,22382.0,22343.0,0.59013375]
[1674248095396,0.04817498,22382.0,22345.0,0.13263]
[1674248095397,0.55985752,22372.0,22345.0,0.13263]
[1674248095677,1.3129,22381.0,22365.0,0.1054]
[1674248095942,1.3129,22381.0,22358.0,6.32389633]
[1674248095943,0.92466868,22378.0,22355.0,0.13263]
[1674248096202,0.15,22365.0,22353.0,0.15]
[1674248096493,0.15,22365.0,22351.0,0.28263]
[1674248096494,0.18502243,22363.0,22351.0,0.3841542]
[1674248096794,0.18502243,22363.0,22346.0,9.0]
[1674248096795,0.4856318,22354.0,22346.0,9.0]
[1674248097055,0.29042243,22353.0,22325.0,0.1054]
[1674248097306,0.1053,22343.0,22328.0,0.1465]
[1674248097573,0.18502243,22331.0,22328.0,0.1465]
[1674248098010,0.18502243,22331.0,22311.0,0.12918]
[1674248098011,0.2377,22329.0,22311.0,0.12918]
[1674248098014,0.15,22323.0,22305.0,0.4985224]
[1674248098268,1.208752,22330.0,22296.0,0.274]
[1674248098269,0.448076,22318.0,22302.0,0.4985224]
[1674248098523,0.319629,22317.0,22299.0,0.12795]
[1674248098783,0.18502243,22308.0,22303.0,3.0]
[1674248099066,0.18502243,22307.0,22303.0,0.04244814]
[1674248099332,0.27918,22326.0,22308.0,0.274]
[1674248099595,0.27918,22326.0,22307.0,0.4985224]
[1674248099596,0.1043,22338.0,22313.0,0.1054]
[1674248099867,0.2089912,22353.0,22324.0,0.274]
[1674248099868,0.447512,22346.0,22324.0,0.274]
[1674248100120,0.12711,22346.0,22339.0,0.274]
[1674248100425,0.12589,22352.0,22345.0,0.51938383]
[1674248100706,0.12589,22352.0,22335.0,0.14021]
[1674248100707,0.447419,22351.0,22335.0,0.14021]
[1674248100962,0.447419,22351.0,22335.0,0.0131]
[1674248100963,0.1325,22346.0,22335.0,0.0131]
[1674248101212,0.1325,22346.0,22329.0,0.12589]
[1674248101213,0.44447315,22336.0,22329.0,0.274]
[1674248101476,0.895498,22334.0,22329.0,0.274]
[1674248101750,0.31495,22333.0,22323.0,0.12422]
[1674248102001,0.0897,22330.0,22323.0,0.28045413]
[1674248102269,0.55877315,22324.0,22315.0,0.28045413]
[1674248102524,0.58697315,22317.0,22315.0,0.28045413]
[1674248102801,2.70460043,22316.0,22312.0,0.28064413]
[1674248103103,1.08123843,22316.0,22315.0,0.28045413]
[1674248103372,1.08123843,22316.0,22307.0,0.43850474]
[1674248103373,0.45447315,22313.0,22307.0,0.31484474]
[1674248103651,0.45447315,22313.0,22290.0,15.0]